[Event "NJSK 2021 Jeugd C"]
[Site "Almelo, Netherlands"]
[Date "2021.08.02"]
[Round "2.2"]
[White "De Winter, Arthur"]
[Black "Dekker, Thiemen"]
[Result "1-0"]
[TimeControl "90min + 30sec/move"]
[WhiteElo "2000"]
[BlackElo "1806"]

1. e4 {[%clk 01:30:57]} {[%emt 00:00:02]} e5 {[%clk 01:30:54]} {[%emt
00:00:07]} 2. Nf3 {[%clk 01:31:22]} {[%emt 00:00:04]} Nc6 {[%clk 01:31:18]}
{[%emt 00:00:06]} 3. Bb5 {[%clk 01:31:49]} {[%emt 00:00:04]} f5 {[%clk
01:31:44]} {[%emt 00:00:05]} 4. d3 {[%clk 01:29:06]} {[%emt 00:03:11]} fxe4
{[%clk 01:31:54]} {[%emt 00:00:20]} 5. dxe4 {[%clk 01:29:28]} {[%emt 00:00:08]}
Nf6 {[%clk 01:32:06]} {[%emt 00:00:19]} 6. O-O {[%clk 01:28:52]} {[%emt
00:01:04]} Bc5 {[%clk 01:32:14]} {[%emt 00:00:24]} 7. Bg5 {[%clk 01:26:35]}
{[%emt 00:02:46]} d6 {[%clk 01:32:03]} {[%emt 00:00:42]} 8. Nc3 {[%clk
01:23:35]} {[%emt 00:03:30]} O-O {[%clk 01:32:21]} {[%emt 00:00:12]} 9. Nd5
{[%clk 01:17:00]} {[%emt 00:07:05]} Kh8 {[%clk 01:32:42]} {[%emt 00:00:09]} 10.
Bc4 {[%clk 01:10:14]} {[%emt 00:07:15]} Bg4 {[%clk 01:27:45]} {[%emt 00:05:27]}
11. Nxf6 {[%clk 01:03:46]} {[%emt 00:06:59]} gxf6 {[%clk 01:28:10]} {[%emt
00:00:05]} 12. Bh6 {[%clk 01:04:02]} {[%emt 00:00:13]} Nd4 {[%clk 01:28:10]}
{[%emt 00:00:31]} 13. Bxf8 {[%clk 01:00:53]} {[%emt 00:03:38]} Nxf3+ {[%clk
01:28:21]} {[%emt 00:00:19]} 14. gxf3 {[%clk 01:01:05]} {[%emt 00:00:18]} Bh3
{[%clk 01:28:35]} {[%emt 00:00:17]} 15. Kh1 {[%clk 00:57:43]} {[%emt 00:03:52]}
Qxf8 {[%clk 01:27:59]} {[%emt 00:01:06]} 16. Qd2 {[%clk 00:54:12]} {[%emt
00:03:59]} Bxf1 {[%clk 01:24:56]} {[%emt 00:03:34]} 17. Rxf1 {[%clk 00:54:37]}
{[%emt 00:00:05]} f5 {[%clk 01:23:49]} {[%emt 00:01:38]} 18. Rg1 {[%clk
00:52:59]} {[%emt 00:02:07]} fxe4 {[%clk 01:20:50]} {[%emt 00:03:29]} 19. Rg8+
{[%clk 00:51:52]} {[%emt 00:01:37]} Qxg8 {[%clk 01:21:14]} {[%emt 00:00:07]} 20.
Bxg8 {[%clk 00:52:19]} {[%emt 00:00:03]} Rxg8 {[%clk 01:21:27]} {[%emt
00:00:17]} 21. fxe4 {[%clk 00:51:15]} {[%emt 00:01:34]} Rf8 {[%clk 01:21:09]}
{[%emt 00:00:48]} 22. Qg5 {[%clk 00:49:46]} {[%emt 00:01:58]} Rxf2 {[%clk
01:19:54]} {[%emt 00:01:45]} 23. Qd8+ {[%clk 00:48:54]} {[%emt 00:01:22]} Kg7
{[%clk 01:20:14]} {[%emt 00:00:11]} 24. Qxc7+ {[%clk 00:48:55]} {[%emt
00:00:29]} Rf7 {[%clk 01:19:56]} {[%emt 00:00:48]} 25. Qc8 {[%clk 00:48:33]}
{[%emt 00:00:51]} Rf1+ {[%clk 01:18:45]} {[%emt 00:01:41]} 26. Kg2 {[%clk
00:48:39]} {[%emt 00:00:24]} Rf2+ {[%clk 01:18:40]} {[%emt 00:00:35]} 27. Kg3
{[%clk 00:48:55]} {[%emt 00:00:15]} Rxc2 {[%clk 01:18:01]} {[%emt 00:01:08]} 28.
Qxb7+ {[%clk 00:49:02]} {[%emt 00:00:22]} Kg6 {[%clk 01:17:33]} {[%emt
00:00:59]} 29. Qb3 {[%clk 00:41:44]} {[%emt 00:07:47]} Rc1 {[%clk 01:15:35]}
{[%emt 00:02:29]} 30. Qg8+ {[%clk 00:36:23]} {[%emt 00:05:51]} Kh6 {[%clk
01:15:27]} {[%emt 00:00:39]} 31. Qf8+ {[%clk 00:31:25]} {[%emt 00:05:28]} Kg6
{[%clk 01:14:52]} {[%emt 00:01:05]} 32. Qf5+ {[%clk 00:30:54]} {[%emt
00:01:00]} Kh6 {[%clk 01:14:32]} {[%emt 00:00:51]} 33. Kh4 {[%clk 00:27:43]}
{[%emt 00:03:39]} Rg1 {[%clk 01:13:10]} {[%emt 00:01:54]} 34. Qf8+ {[%clk
00:25:32]} {[%emt 00:02:40]} Kg6 {[%clk 01:09:35]} {[%emt 00:04:06]} 35. b4
{[%clk 00:25:47]} {[%emt 00:00:15]} Be3 {[%clk 01:04:09]} {[%emt 00:05:56]} 36.
Qxd6+ {[%clk 00:26:07]} {[%emt 00:00:09]} Kf7 {[%clk 01:02:22]} {[%emt
00:02:18]} 37. Qd7+ {[%clk 00:26:26]} {[%emt 00:00:11]} Kg6 {[%clk 00:58:38]}
{[%emt 00:04:14]} 38. Qe6+ {[%clk 00:26:47]} {[%emt 00:00:08]} Kg7 {[%clk
00:57:09]} {[%emt 00:02:00]} 39. Qxe5+ {[%clk 00:27:12]} {[%emt 00:00:05]} 1-0

[Event "NJSK 2021 Jeugd C"]
[Site "Almelo, Netherlands"]
[Date "2021.08.02"]
[Round "2.3"]
[White "Ekker, Joshua"]
[Black "Verheij, Dana"]
[Result "1-0"]
[TimeControl "90min + 30sec/move"]
[WhiteElo "1695"]
[BlackElo "1931"]

1. e4 {[%clk 01:30:58]} c5 {[%clk 01:30:55]} {[%emt 00:00:05]} 2. Nf3 {[%clk
01:31:23]} {[%emt 00:00:05]} d6 {[%clk 01:31:20]} {[%emt 00:00:06]} 3. d4
{[%clk 01:31:48]} {[%emt 00:00:05]} cxd4 {[%clk 01:31:44]} {[%emt 00:00:06]} 4.
Nxd4 {[%clk 01:32:13]} {[%emt 00:00:04]} Nf6 {[%clk 01:31:55]} {[%emt
00:00:19]} 5. Nc3 {[%clk 01:32:33]} {[%emt 00:00:10]} a6 {[%clk 01:32:20]}
{[%emt 00:00:06]} 6. Be3 {[%clk 01:32:46]} {[%emt 00:00:16]} e5 {[%clk
01:32:31]} {[%emt 00:00:19]} 7. Nb3 {[%clk 01:33:05]} {[%emt 00:00:11]} Be7
{[%clk 01:32:51]} {[%emt 00:00:10]} 8. f3 {[%clk 01:33:12]} {[%emt 00:00:22]}
Be6 {[%clk 01:32:45]} {[%emt 00:00:37]} 9. g4 {[%clk 01:32:36]} {[%emt
00:01:06]} Nbd7 {[%clk 01:31:40]} {[%emt 00:01:35]} 10. Qd2 {[%clk 01:32:15]}
{[%emt 00:00:50]} O-O {[%clk 01:31:25]} {[%emt 00:00:46]} 11. O-O-O {[%clk
01:31:56]} {[%emt 00:00:49]} b5 {[%clk 01:30:57]} {[%emt 00:00:58]} 12. g5
{[%clk 01:29:46]} {[%emt 00:02:40]} Nh5 {[%clk 01:30:40]} {[%emt 00:00:46]} 13.
h4 {[%clk 01:26:59]} {[%emt 00:03:16]} Qc7 {[%clk 01:29:35]} {[%emt 00:01:36]}
14. Nd5 {[%clk 01:22:38]} {[%emt 00:04:52]} Bxd5 {[%clk 01:29:48]} {[%emt
00:00:18]} 15. exd5 {[%clk 01:22:58]} {[%emt 00:00:09]} Rfc8 {[%clk 01:18:08]}
{[%emt 00:12:09]} 16. Bh3 {[%clk 01:18:38]} {[%emt 00:04:49]} a5 {[%clk
01:05:04]} {[%emt 00:13:36]} 17. Kb1 {[%clk 00:58:04]} {[%emt 00:21:04]} Bd8
{[%clk 00:57:04]} {[%emt 00:08:30]} 18. Rhg1 {[%clk 00:48:44]} {[%emt
00:09:48]} a4 {[%clk 00:53:38]} {[%emt 00:03:58]} 19. Nc1 {[%clk 00:48:06]}
{[%emt 00:01:07]} a3 {[%clk 00:52:14]} {[%emt 00:01:55]} 20. b3 {[%clk
00:46:25]} {[%emt 00:02:10]} Rcb8 {[%clk 00:46:25]} {[%emt 00:06:19]} 21. Nd3
{[%clk 00:40:20]} {[%emt 00:06:35]} Nb6 {[%clk 00:44:56]} {[%emt 00:02:00]} 22.
Nb4 {[%clk 00:38:39]} {[%emt 00:02:11]} Nf4 {[%clk 00:30:00]} {[%emt 00:15:26]}
23. Bxf4 {[%clk 00:34:48]} {[%emt 00:04:20]} exf4 {[%clk 00:29:03]} {[%emt
00:01:27]} 24. Nc6 {[%clk 00:34:30]} {[%emt 00:00:49]} Nc4 {[%clk 00:10:21]}
{[%emt 00:19:13]} 25. Qxf4 {[%clk 00:21:53]} {[%emt 00:13:05]} Ne5 {[%clk
00:06:41]} {[%emt 00:04:11]} 26. Nxb8 {[%clk 00:17:07]} {[%emt 00:05:16]} Rxb8
{[%clk 00:07:08]} {[%emt 00:00:03]} 27. Qe3 {[%clk 00:16:16]} {[%emt 00:01:20]}
Qa5 {[%clk 00:06:45]} {[%emt 00:00:53]} 28. f4 {[%clk 00:11:58]} {[%emt
00:04:48]} Bb6 {[%clk 00:06:50]} {[%emt 00:00:24]} 29. Qe1 {[%clk 00:12:12]}
{[%emt 00:00:17]} b4 {[%clk 00:03:32]} {[%emt 00:03:49]} 30. fxe5 {[%clk
00:09:41]} {[%emt 00:03:01]} Bxg1 {[%clk 00:03:54]} {[%emt 00:00:08]} 31. Qxg1
{[%clk 00:09:44]} {[%emt 00:00:27]} Qc7 {[%clk 00:04:16]} {[%emt 00:00:08]} 32.
Qe3 {[%clk 00:09:08]} {[%emt 00:01:05]} dxe5 {[%clk 00:04:03]} {[%emt
00:00:43]} 33. d6 {[%clk 00:08:58]} {[%emt 00:00:40]} Qa5 {[%clk 00:03:46]}
{[%emt 00:00:48]} 34. d7 {[%clk 00:08:41]} {[%emt 00:00:46]} Rd8 {[%clk
00:03:30]} {[%emt 00:00:47]} 35. Re1 {[%clk 00:07:52]} {[%emt 00:01:18]} f6
{[%clk 00:02:53]} {[%emt 00:01:08]} 36. gxf6 {[%clk 00:08:01]} {[%emt
00:00:21]} gxf6 {[%clk 00:03:18]} {[%emt 00:00:05]} 37. Rg1+ {[%clk 00:07:26]}
{[%emt 00:01:05]} 1-0

[Event "NJSK 2021 Jeugd C"]
[Site "Almelo, Netherlands"]
[Date "2021.08.02"]
[Round "2.4"]
[White "Kumar, Prayan Sai"]
[Black "Bakija, Alan"]
[Result "0-1"]
[TimeControl "90min + 30sec/move"]
[WhiteElo "1652"]
[BlackElo "1870"]

1. d4 {[%clk 01:30:53]} {[%emt 00:00:06]} Nf6 {[%clk 01:30:53]} {[%emt
00:00:07]} 2. c4 {[%clk 01:30:52]} {[%emt 00:00:32]} e6 {[%clk 01:31:19]}
{[%emt 00:00:05]} 3. Nf3 {[%clk 01:30:46]} {[%emt 00:00:35]} d5 {[%clk
01:31:36]} {[%emt 00:00:13]} 4. Nc3 {[%clk 01:30:58]} {[%emt 00:00:18]} Bb4
{[%clk 01:32:01]} {[%emt 00:00:05]} 5. cxd5 {[%clk 01:31:10]} {[%emt 00:00:18]}
exd5 {[%clk 01:32:10]} {[%emt 00:00:21]} 6. Qa4+ {[%clk 01:29:21]} {[%emt
00:02:19]} Nc6 {[%clk 01:32:29]} {[%emt 00:00:11]} 7. Bg5 {[%clk 01:29:05]}
{[%emt 00:00:45]} Bd7 {[%clk 01:27:08]} {[%emt 00:05:52]} 8. Qc2 {[%clk
01:28:44]} {[%emt 00:00:51]} h6 {[%clk 01:25:58]} {[%emt 00:01:40]} 9. Bxf6
{[%clk 01:28:55]} {[%emt 00:00:18]} Qxf6 {[%clk 01:26:20]} {[%emt 00:00:09]} 10.
e3 {[%clk 01:28:15]} {[%emt 00:01:10]} g5 {[%clk 01:02:16]} {[%emt 00:24:35]}
11. Be2 {[%clk 01:10:07]} {[%emt 00:18:37]} Bf5 {[%clk 00:44:51]} {[%emt
00:17:55]} 12. Qb3 {[%clk 01:01:03]} {[%emt 00:09:34]} O-O-O {[%clk 00:34:11]}
{[%emt 00:11:10]} 13. a3 {[%clk 00:52:11]} {[%emt 00:09:22]} Bxc3+ {[%clk
00:31:12]} {[%emt 00:03:29]} 14. Qxc3 {[%clk 00:52:00]} {[%emt 00:00:40]} g4
{[%clk 00:31:06]} {[%emt 00:00:36]} 15. Nd2 {[%clk 00:44:44]} {[%emt 00:07:47]}
h5 {[%clk 00:31:05]} {[%emt 00:00:30]} 16. Rc1 {[%clk 00:42:38]} {[%emt
00:02:36]} h4 {[%clk 00:30:26]} {[%emt 00:01:10]} 17. b4 {[%clk 00:38:04]}
{[%emt 00:05:04]} Rd7 {[%clk 00:28:17]} {[%emt 00:02:38]} 18. Bb5 {[%clk
00:33:57]} {[%emt 00:04:38]} Rd6 {[%clk 00:28:08]} {[%emt 00:00:39]} 19. Ba4
{[%clk 00:29:46]} {[%emt 00:04:41]} Qe7 {[%clk 00:27:00]} {[%emt 00:01:37]} 20.
Nb3 {[%clk 00:24:02]} {[%emt 00:06:15]} Be4 {[%clk 00:19:53]} {[%emt 00:07:37]}
21. Rg1 {[%clk 00:23:39]} {[%emt 00:00:53]} g3 {[%clk 00:13:51]} {[%emt
00:06:31]} 22. hxg3 {[%clk 00:22:47]} {[%emt 00:01:22]} hxg3 {[%clk 00:13:58]}
{[%emt 00:00:24]} 23. f3 {[%clk 00:23:07]} {[%emt 00:00:10]} Bf5 {[%clk
00:06:15]} {[%emt 00:08:13]} 24. Nc5 {[%clk 00:22:26]} {[%emt 00:01:11]} Nd8
{[%clk 00:06:20]} {[%emt 00:00:25]} 25. Bc2 {[%clk 00:17:08]} {[%emt 00:05:48]}
Bxc2 {[%clk 00:05:48]} {[%emt 00:01:03]} 26. Rxc2 {[%clk 00:17:27]} {[%emt
00:00:10]} b6 {[%clk 00:05:44]} {[%emt 00:00:33]} 27. Na6 {[%clk 00:13:52]}
{[%emt 00:04:06]} Rc6 {[%clk 00:05:57]} {[%emt 00:00:16]} 28. Qd3 {[%clk
00:12:44]} {[%emt 00:01:39]} Rxc2 {[%clk 00:06:06]} {[%emt 00:00:20]} 29. Qxc2
{[%clk 00:13:12]} {[%emt 00:00:01]} Qxe3+ {[%clk 00:06:25]} {[%emt 00:00:11]}
30. Kf1 {[%clk 00:13:31]} {[%emt 00:00:11]} c6 {[%clk 00:05:19]} {[%emt
00:01:36]} 31. b5 {[%clk 00:12:09]} {[%emt 00:01:53]} Re8 {[%clk 00:05:10]}
{[%emt 00:00:39]} 32. Qd1 {[%clk 00:11:41]} {[%emt 00:00:58]} Qf2# {[%clk
00:04:59]} {[%emt 00:00:10]} 0-1

[Event "NJSK 2021 Jeugd C"]
[Site "Almelo, Netherlands"]
[Date "2021.08.02"]
[Round "2.5"]
[White "Kumar, Prajit Sai"]
[Black "Ponomarev, Ivan"]
[Result "1-0"]
[TimeControl "90min + 30sec/move"]
[WhiteElo "1811"]
[BlackElo "1723"]

1. d4 {[%clk 01:30:57]} {[%emt 00:00:02]} Nf6 {[%clk 01:30:58]} {[%emt
00:00:03]} 2. c4 {[%clk 01:31:19]} {[%emt 00:00:07]} e6 {[%clk 01:31:26]}
{[%emt 00:00:03]} 3. Nc3 {[%clk 01:31:43]} {[%emt 00:00:06]} Bb4 {[%clk
01:31:52]} {[%emt 00:00:04]} 4. Qc2 {[%clk 01:32:06]} {[%emt 00:00:06]} O-O
{[%clk 01:31:17]} {[%emt 00:01:06]} 5. Nf3 {[%emt 00:01:15]} d5 {[%clk
01:30:42]} {[%emt 00:00:01]} 6. cxd5 {[%clk 01:32:35]} {[%emt 00:00:19]} exd5
{[%clk 01:29:51]} {[%emt 00:01:22]} 7. Bg5 {[%clk 01:32:29]} {[%emt 00:00:35]}
h6 {[%clk 01:27:43]} {[%emt 00:02:39]} 8. Bh4 {[%clk 01:32:44]} {[%emt
00:00:13]} Be6 {[%clk 01:25:42]} {[%emt 00:02:32]} 9. e3 {[%clk 01:32:45]}
{[%emt 00:00:30]} Nbd7 {[%clk 01:24:45]} {[%emt 00:01:27]} 10. Bd3 {[%clk
01:29:12]} {[%emt 00:04:02]} c5 {[%clk 01:18:18]} {[%emt 00:06:57]} 11. dxc5
{[%clk 01:27:47]} {[%emt 00:01:55]} Nxc5 {[%clk 01:18:21]} {[%emt 00:00:27]} 12.
O-O {[%clk 01:27:19]} {[%emt 00:00:58]} Rc8 {[%clk 01:12:55]} {[%emt 00:05:56]}
13. Rac1 {[%clk 01:19:53]} {[%emt 00:07:56]} Qe7 {[%clk 01:07:59]} {[%emt
00:05:24]} 14. Rfd1 {[%clk 01:12:47]} {[%emt 00:07:37]} Rfd8 {[%clk 01:05:57]}
{[%emt 00:02:33]} 15. Nb5 {[%clk 01:05:37]} {[%emt 00:07:40]} a6 {[%clk
00:53:07]} {[%emt 00:13:18]} 16. Nbd4 {[%clk 01:03:10]} {[%emt 00:02:58]} Nxd3
{[%clk 00:49:38]} {[%emt 00:04:00]} 17. Qxd3 {[%clk 01:03:27]} {[%emt
00:00:13]} Bg4 {[%clk 00:43:36]} {[%emt 00:06:32]} 18. a3 {[%clk 00:57:01]}
{[%emt 00:06:56]} Bc5 {[%clk 00:39:48]} {[%emt 00:04:18]} 19. Re1 {[%clk
00:38:13]} {[%emt 00:19:18]} Bxf3 {[%clk 00:34:37]} {[%emt 00:05:41]} 20. Nxf3
{[%clk 00:37:15]} {[%emt 00:01:27]} Rc7 {[%clk 00:23:44]} {[%emt 00:11:25]} 21.
Red1 {[%clk 00:32:17]} {[%emt 00:05:27]} Bd6 {[%clk 00:21:31]} {[%emt
00:02:43]} 22. Rxc7 {[%clk 00:20:34]} {[%emt 00:12:13]} Bxc7 {[%clk 00:21:55]}
{[%emt 00:00:07]} 23. Qd4 {[%clk 00:18:28]} {[%emt 00:02:34]} Rd6 {[%clk
00:20:34]} {[%emt 00:01:51]} 24. Bxf6 {[%clk 00:17:05]} {[%emt 00:01:53]} Qxf6
{[%clk 00:20:18]} {[%emt 00:00:47]} 25. Qxf6 {[%clk 00:17:28]} {[%emt
00:00:07]} gxf6 {[%clk 00:20:46]} {[%emt 00:00:02]} 26. Kf1 {[%clk 00:17:17]}
{[%emt 00:00:41]} Kf8 {[%clk 00:20:39]} {[%emt 00:00:37]} 27. Ke2 {[%clk
00:16:07]} {[%emt 00:01:39]} b5 {[%clk 00:16:28]} {[%emt 00:04:42]} 28. Rc1
{[%clk 00:14:24]} {[%emt 00:02:13]} Bb6 {[%clk 00:16:30]} {[%emt 00:00:28]} 29.
Rc8+ {[%clk 00:14:24]} {[%emt 00:00:29]} Ke7 {[%emt 00:01:47]} 30. Kd3 {[%clk
00:14:13]} {[%emt 00:00:35]} f5 {[%clk 00:14:02]} {[%emt 00:01:47]} 31. g3
{[%clk 00:13:00]} {[%emt 00:01:42]} Kd7 {[%emt 00:02:01]} 32. Rh8 {[%clk
00:12:10]} {[%emt 00:01:08]} Ke7 {[%clk 00:10:35]} {[%emt 00:02:40]} 33. Rc8
{[%clk 00:11:13]} {[%emt 00:01:27]} Kd7 {[%clk 00:10:38]} {[%emt 00:00:28]} 34.
Rc2 {[%clk 00:11:13]} {[%emt 00:00:29]} f4 {[%clk 00:09:01]} {[%emt 00:02:07]}
35. exf4 {[%clk 00:10:25]} {[%emt 00:01:17]} h5 {[%clk 00:05:53]} {[%emt
00:03:39]} 36. Re2 {[%clk 00:08:33]} {[%emt 00:02:22]} f6 {[%clk 00:05:58]}
{[%emt 00:00:24]} 37. Nd4 {[%clk 00:07:54]} {[%emt 00:01:09]} Bxd4 {[%clk
00:05:39]} {[%emt 00:00:51]} 38. Kxd4 {[%clk 00:08:21]} {[%emt 00:00:03]} Kd8
{[%clk 00:05:03]} {[%emt 00:01:04]} 39. h4 {[%clk 00:08:06]} {[%emt 00:00:45]}
Kd7 {[%clk 00:05:13]} {[%emt 00:00:20]} 40. f5 {[%clk 00:07:47]} {[%emt
00:00:49]} 1-0

[Event "NJSK 2021 Jeugd C"]
[Site "Almelo, Netherlands"]
[Date "2021.08.02"]
[Round "2.6"]
[White "Smeets, Kobe"]
[Black "Madularea, David"]
[Result "1-0"]
[TimeControl "90min + 30sec/move"]
[WhiteElo "1897"]
[BlackElo "1656"]

1. e4 {[%clk 01:30:58]} {[%emt 00:00:02]} c5 {[%clk 01:30:55]} {[%emt
00:00:05]} 2. Nf3 {[%clk 01:31:25]} {[%emt 00:00:03]} d6 {[%clk 01:31:20]}
{[%emt 00:00:05]} 3. d4 {[%clk 01:31:52]} {[%emt 00:00:03]} cxd4 {[%clk
01:31:44]} {[%emt 00:00:06]} 4. Nxd4 {[%clk 01:32:19]} {[%emt 00:00:04]} Nf6
{[%clk 01:32:07]} {[%emt 00:00:06]} 5. Nc3 {[%clk 01:32:45]} {[%emt 00:00:04]}
a6 {[%clk 01:32:26]} {[%emt 00:00:10]} 6. h3 {[%clk 01:33:09]} {[%emt
00:00:05]} e5 {[%clk 01:32:33]} {[%emt 00:00:24]} 7. Nde2 {[%clk 01:33:34]}
{[%emt 00:00:05]} h5 {[%clk 01:32:57]} {[%emt 00:00:06]} 8. Bg5 {[%clk
01:33:51]} {[%emt 00:00:14]} Be6 {[%clk 01:33:06]} {[%emt 00:00:20]} 9. Bxf6
{[%clk 01:34:05]} {[%emt 00:00:17]} Qxf6 {[%clk 01:33:21]} {[%emt 00:00:14]} 10.
Nd5 {[%clk 01:34:29]} {[%emt 00:00:07]} Qd8 {[%clk 01:32:54]} {[%emt 00:00:55]}
11. Qd3 {[%clk 01:34:31]} {[%emt 00:00:29]} Nd7 {[%clk 01:31:46]} {[%emt
00:01:39]} 12. Nec3 {[%clk 01:32:35]} {[%emt 00:02:27]} Rc8 {[%clk 01:30:12]}
{[%emt 00:02:03]} 13. O-O-O {[%clk 01:30:36]} {[%emt 00:02:30]} b5 {[%clk
01:27:01]} {[%emt 00:03:41]} 14. Kb1 {[%clk 01:21:19]} {[%emt 00:09:47]} Qa5
{[%clk 01:16:40]} {[%emt 00:10:51]} 15. a3 {[%clk 01:19:13]} {[%emt 00:02:36]}
Nb6 {[%clk 01:01:02]} {[%emt 00:16:07]} 16. Qe3 {[%clk 01:06:31]} {[%emt
00:13:13]} Bxd5 {[%clk 00:50:41]} {[%emt 00:10:51]} 17. Nxd5 {[%emt 00:04:13]}
Nxd5 {[%clk 00:49:59]} {[%emt 00:00:01]} 18. Rxd5 {[%clk 01:02:59]} {[%emt
00:01:30]} Qd8 {[%clk 00:44:55]} {[%emt 00:05:34]} 19. Bd3 {[%clk 01:00:47]}
{[%emt 00:02:42]} Rc5 {[%clk 00:43:49]} {[%emt 00:01:36]} 20. f4 {[%clk
00:59:07]} {[%emt 00:02:09]} Qe7 {[%clk 00:36:11]} {[%emt 00:08:09]} 21. Re1
{[%clk 00:55:26]} {[%emt 00:04:12]} g6 {[%clk 00:34:09]} {[%emt 00:02:31]} 22.
fxe5 {[%clk 00:44:35]} {[%emt 00:11:18]} dxe5 {[%clk 00:32:43]} {[%emt
00:01:59]} 23. b4 {[%clk 00:38:43]} {[%emt 00:06:24]} Rxd5 {[%clk 00:24:27]}
{[%emt 00:08:44]} 24. exd5 {[%clk 00:38:59]} {[%emt 00:00:13]} Qc7 {[%clk
00:23:30]} {[%emt 00:01:28]} 25. Qxe5+ {[%clk 00:36:59]} {[%emt 00:02:31]} Qxe5
{[%clk 00:23:55]} {[%emt 00:00:05]} 26. Rxe5+ {[%clk 00:37:23]} {[%emt
00:00:06]} Kd7 {[%clk 00:24:17]} {[%emt 00:00:07]} 27. c4 {[%clk 00:37:02]}
{[%emt 00:00:52]} Bd6 {[%clk 00:21:54]} {[%emt 00:02:52]} 28. Re3 {[%clk
00:37:11]} {[%emt 00:00:21]} bxc4 {[%clk 00:22:06]} {[%emt 00:00:18]} 29. Bxc4
{[%clk 00:37:17]} {[%emt 00:00:24]} Ra8 {[%clk 00:20:03]} {[%emt 00:02:33]} 30.
Kb2 {[%clk 00:35:09]} {[%emt 00:02:38]} h4 {[%clk 00:18:05]} {[%emt 00:02:29]}
31. Kb3 {[%clk 00:35:11]} {[%emt 00:00:28]} a5 {[%clk 00:17:10]} {[%emt
00:01:24]} 32. Bb5+ {[%clk 00:33:20]} {[%emt 00:02:21]} Kc7 {[%clk 00:17:02]}
{[%emt 00:00:38]} 33. Rc3+ {[%clk 00:33:15]} {[%emt 00:00:34]} Kd8 {[%clk
00:15:17]} {[%emt 00:02:15]} 34. Bc6 {[%clk 00:32:48]} {[%emt 00:00:58]} Rb8
{[%clk 00:12:46]} {[%emt 00:03:01]} 35. b5 {[%clk 00:33:03]} {[%emt 00:00:16]}
Ke7 {[%clk 00:11:54]} {[%emt 00:01:20]} 36. Re3+ {[%clk 00:31:31]} {[%emt
00:02:03]} Kd8 {[%clk 00:11:55]} {[%emt 00:00:30]} 37. Ka4 {[%clk 00:31:22]}
{[%emt 00:00:38]} Bc5 {[%clk 00:11:24]} {[%emt 00:01:02]} 38. Re8+ {[%clk
00:30:12]} {[%emt 00:01:40]} Kc7 {[%clk 00:11:48]} {[%emt 00:00:05]} 39. Rxb8
{[%clk 00:26:37]} {[%emt 00:04:05]} Kxb8 {[%clk 00:12:12]} {[%emt 00:00:06]} 40.
Kxa5 {[%clk 00:27:02]} {[%emt 00:00:04]} Bxa3 {[%clk 00:12:33]} {[%emt
00:00:08]} 41. Kb6 {[%clk 00:27:28]} {[%emt 00:00:05]} g5 {[%clk 00:11:28]}
{[%emt 00:01:36]} 42. Bd7 {[%clk 00:27:52]} {[%emt 00:00:06]} f6 {[%clk
00:11:36]} {[%emt 00:00:21]} 43. Kc6 {[%clk 00:28:17]} {[%emt 00:00:05]} Be7
{[%clk 00:11:55]} {[%emt 00:00:11]} 44. Bf5 {[%clk 00:28:10]} {[%emt 00:00:37]}
Bb4 {[%clk 00:11:00]} {[%emt 00:01:25]} 45. d6 {[%clk 00:25:50]} {[%emt
00:02:51]} Ba3 {[%clk 00:11:06]} {[%emt 00:00:23]} 46. Kd7 {[%clk 00:22:07]}
{[%emt 00:04:13]} Bb4 {[%clk 00:06:51]} {[%emt 00:04:45]} 47. Kc6 {[%clk
00:16:42]} {[%emt 00:05:56]} Ba5 {[%clk 00:05:37]} {[%emt 00:01:43]} 48. b6
{[%clk 00:15:52]} {[%emt 00:01:20]} Bb4 {[%clk 00:05:42]} {[%emt 00:00:26]} 49.
b7 {[%clk 00:15:46]} {[%emt 00:00:36]} Ba3 {[%clk 00:05:07]} {[%emt 00:01:04]}
50. Be4 {[%clk 00:15:53]} {[%emt 00:00:23]} Bb4 {[%clk 00:05:09]} {[%emt
00:00:29]} 51. Kd7 {[%clk 00:16:06]} {[%emt 00:00:16]} f5 {[%clk 00:04:52]}
{[%emt 00:00:47]} 52. Bd5 {[%clk 00:16:24]} {[%emt 00:00:12]} g4 {[%clk
00:04:15]} {[%emt 00:01:07]} 53. Ke6 {[%clk 00:16:30]} {[%emt 00:00:24]} gxh3
{[%clk 00:04:41]} {[%emt 00:00:03]} 54. gxh3 {[%clk 00:16:51]} {[%emt
00:00:09]} f4 {[%clk 00:04:11]} {[%emt 00:01:01]} 55. d7 {[%clk 00:16:14]}
{[%emt 00:01:08]} Ba5 {[%clk 00:04:16]} {[%emt 00:00:24]} 56. Ke7 {[%clk
00:16:38]} {[%emt 00:00:07]} 1-0